bitfinex-derivatives/quotes_SOLF0:USTF0_20250311
["timestamp","ask_amount","ask_price","bid_price","bid_amount"]
[1741714776130,2.6139,123.55,123.52,8.0977]
[1741714776431,275.5558,123.56,123.52,8.0977]
[1741714776631,267.46,123.56,123.51,0.05849906]
[1741714776833,267.46,123.56,123.53,8.0974]
[1741714777131,267.46,123.56,123.52,71.27061062]
[1741714777432,2.6139,123.58,123.55,8.0961]
[1741714777632,2.6139,123.58,123.52,71.27061062]
[1741714777827,2.6139,123.58,123.55,0.06097113]
[1741714779022,2.6139,123.58,123.48,33.97061062]
[1741714779224,2.6139,123.58,123.49,37.3]
[1741714780028,8.0959,123.56,123.51,8.0984]
[1741714780234,0.0608243,123.55,123.52,0.06125137]
[1741714780628,0.0608243,123.55,123.54,8.0968]
[1741714783236,0.0608243,123.55,123.53,37.28]
[1741714783437,0.0608243,123.55,123.52,0.06125137]
[1741714786143,0.0608243,123.55,123.52,8.15885137]
[1741714786635,0.0608243,123.55,123.52,0.06125137]
[1741714787635,0.0608243,123.55,123.53,55.20618915]
[1741714787833,192.0,123.64,123.54,37.28]
[1741714788037,274.859,123.62,123.55,55.20618915]
[1741714788540,274.859,123.62,123.6,8.0924]
[1741714788844,274.859,123.62,123.58,37.28]
[1741714789043,274.859,123.62,123.6,0.06072204]
[1741714789242,267.28,123.62,123.6,0.06072204]
[1741714790139,7.7342,123.66,123.61,8.0922]
[1741714790739,8.0899,123.65,123.61,8.0922]
[1741714791632,8.0903,123.64,123.6,8.15332204]
[1741714791838,7.7342,123.66,123.6,0.06072204]
[1741714792544,37.28,123.65,123.6,0.06072204]
[1741714792743,92.48618915,123.65,123.58,37.28]
[1741714793545,55.20618915,123.63,123.51,55.20618915]
[1741714793741,55.20618915,123.63,123.52,37.26]
[1741714794050,0.05311374,123.58,123.56,0.05548458]
[1741714794542,0.05311374,123.58,123.56,0.05406587]
[1741714794543,0.05715111,123.58,123.56,0.05406587]
[1741714796248,0.05715111,123.58,123.52,37.26]
[1741714796647,0.05715111,123.58,123.54,8.0964]
[1741714796848,8.15165111,123.58,123.54,8.0964]
[1741714797042,0.05715111,123.58,123.52,37.26]
[1741714797444,0.05715111,123.58,123.54,0.05129174]
[1741714797643,0.05715111,123.58,123.54,8.14769174]
[1741714797844,0.05715111,123.58,123.54,0.05129174]
[1741714798746,0.05715111,123.58,123.54,8.14769174]
[1741714798943,8.15165111,123.58,123.54,8.14769174]
[1741714799651,0.05715111,123.58,123.55,8.0957]
[1741714799949,0.05715111,123.58,123.54,0.05129174]
[1741714800349,267.08,123.62,123.57,55.20618915]
[1741714800545,267.08,123.62,123.58,37.26]
[1741714801345,275.1715,123.62,123.59,8.0932]
[1741714801543,0.05778363,123.61,123.59,0.05589575]
[1741714801743,8.0928,123.6,123.59,0.05589575]
[1741714801944,0.05778363,123.61,123.59,0.05589575]
[1741714802945,2.47778363,123.61,123.51,92.46618915]
[1741714803148,192.0,123.61,123.51,92.46618915]
[1741714803342,2.632,123.6,123.51,92.46618915]
[1741714803549,267.08,123.59,123.51,37.26]
[1741714803745,55.20618915,123.57,123.45,55.20618915]
[1741714803956,0.05955964,123.52,123.5,0.0591482]
[1741714804159,231.8516,123.56,123.5,0.0591482]
[1741714804350,8.15482452,123.52,123.5,0.0591482]
[1741714804655,0.05642452,123.52,123.5,0.0591482]
[1741714804952,8.0987,123.51,123.5,0.0591482]
[1741714805851,0.05642452,123.52,123.5,0.0591482]
[1741714806053,0.05642452,123.52,123.46,37.26]
[1741714806453,0.05642452,123.52,123.45,37.26]
[1741714806654,8.0976,123.53,123.48,8.1003]
[1741714807251,0.05796984,123.52,123.49,0.05981492]
[1741714807451,8.15606984,123.52,123.49,0.05981492]
[1741714807855,0.05796984,123.52,123.49,0.05981492]
[1741714809758,8.0994,123.5,123.49,0.05981492]
[1741714810054,267.14,123.51,123.41,55.24965745]
[1741714810253,267.14,123.51,123.42,37.26]
[1741714810557,267.14,123.51,123.41,55.24965745]
[1741714810753,267.14,123.51,123.41,92.52965745]
[1741714810958,0.05996884,123.47,123.41,92.52965745]
[1741714811260,0.05996884,123.47,123.45,0.05570843]
[1741714811659,0.05996884,123.47,123.45,37.33570843]
[1741714811864,0.05996884,123.47,123.46,8.102]
[1741714813559,2.5964,123.55,123.46,57.66965745]
[1741714813754,459.22,123.57,123.48,55.24965745]
[1741714813961,459.22,123.57,123.49,37.28]
[1741714814554,0.0615047,123.54,123.52,0.06112771]
[1741714816255,0.0615047,123.54,123.53,8.0974]
[1741714816457,267.22,123.57,123.53,37.28]
[1741714817560,194.4648,123.61,123.53,37.28]
[1741714817763,0.05993284,123.56,123.54,55.24965745]
[1741714818063,0.06130454,123.56,123.54,55.24965745]
[1741714818258,0.06130454,123.56,123.54,0.05468684]
[1741714818851,0.06130454,123.56,123.55,8.0961]
[1741714819064,0.06130454,123.56,123.54,0.05468684]
[1741714821364,8.0961,123.55,123.54,0.05468684]
[1741714821855,459.16,123.55,123.45,57.90255745]
[1741714822060,459.16,123.55,123.38,134.31500741]
[1741714822061,55.24965745,123.53,123.41,37.26]
[1741714822261,55.24965745,123.51,123.4,62.98955745]
[1741714822457,8.1014,123.47,123.42,8.1042]
[1741714822663,234.3999,123.5,123.4,100.24955745]
[1741714822971,234.3999,123.5,123.42,55.24965745]
[1741714823262,0.05343958,123.46,123.44,55.30703814]
[1741714823465,42.4087,123.54,123.45,37.26]
[1741714824068,42.4087,123.54,123.46,55.24965745]
[1741714824269,42.4087,123.54,123.46,57.70825745]
[1741714824464,50.5059,123.54,123.48,8.1003]
[1741714824759,0.05650333,123.51,123.49,0.05658374]
[1741714824964,8.0994,123.5,123.49,0.05658374]
[1741714825167,0.05650333,123.51,123.49,0.05658374]
[1741714825964,0.05650333,123.51,123.5,37.26]
[1741714826159,0.05650333,123.51,123.49,0.05658374]
[1741714826767,0.05650333,123.51,123.49,8.15638374]
[1741714826964,0.05650333,123.51,123.49,0.05658374]
[1741714828161,0.05650333,123.51,123.49,8.15628374]
[1741714828357,0.05650333,123.51,123.49,0.05658374]
[1741714828967,0.05650333,123.51,123.5,8.0994]
[1741714829159,267.16,123.55,123.49,0.05658374]
[1741714829467,267.16,123.55,123.54,8.0968]
[1741714829667,10.609,123.58,123.51,92.50965745]
[1741714829969,2.5145,123.58,123.51,92.50965745]
[1741714830166,269.6705,123.61,123.53,55.24965745]
[1741714830363,267.2,123.61,123.54,33.94366303]
[1741714830563,267.2,123.61,123.56,33.94366303]
[1741714830960,267.2,123.61,123.59,8.0931]
[1741714831166,267.2,123.61,123.56,33.94366303]
[1741714831570,42.2786359,123.62,123.57,0.06077603]
[1741714832071,42.2786359,123.62,123.59,8.0931]
[1741714832265,42.2786359,123.62,123.59,45.3531]
[1741714832472,42.2786359,123.62,123.57,0.06077603]
[1741714832668,44.7148359,123.62,123.57,0.06077603]
[1741714833262,2.4362,123.62,123.57,0.06077603]
[1741714833866,8.0939,123.59,123.57,0.06077603]
[1741714834064,2.4362,123.62,123.57,0.06077603]
[1741714834265,57.58221797,123.62,123.57,0.06077603]
[1741714834574,2.4362,123.62,123.57,0.06077603]
[1741714835373,2.4362,123.62,123.57,8.15517603]
[1741714835773,2.4362,123.62,123.57,0.06077603]
[1741714836174,8.0939,123.59,123.57,0.06077603]
[1741714836373,2.4362,123.62,123.57,0.06077603]
[1741714837271,8.0941,123.58,123.57,0.06077603]
[1741714837472,267.1,123.59,123.57,0.06077603]
[1741714837871,269.629,123.59,123.52,45.3578]
[1741714838076,269.629,123.59,123.52,37.26]
[1741714838371,269.629,123.59,123.53,8.0972]
[1741714838577,269.629,123.59,123.5,2.6741]
[1741714838973,8.0959,123.56,123.52,8.098]
[1741714839170,0.05605199,123.56,123.53,0.06105159]
[1741714839473,0.05605199,123.56,123.53,8.15815159]
[1741714840078,0.05605199,123.56,123.53,0.06105159]
[1741714841172,0.05605199,123.56,123.55,8.0961]
[1741714841878,0.05605199,123.56,123.54,37.24]
[1741714842280,0.05605199,123.56,123.55,8.0961]
[1741714842475,0.05605199,123.56,123.54,37.24]
[1741714843377,0.05605199,123.56,123.55,8.0961]
[1741714843779,0.05605199,123.56,123.54,37.24]
[1741714844583,8.0964,123.55,123.53,0.06105159]
[1741714844879,0.05605199,123.56,123.53,0.06105159]
[1741714845080,0.05605199,123.56,123.55,8.0961]
[1741714845382,0.05605199,123.56,123.55,45.3361]
[1741714845583,0.05605199,123.56,123.55,37.24]
[1741714846184,0.05605199,123.56,123.55,45.3361]
[1741714846385,267.12,123.6,123.55,37.24]
[1741714846781,275.2128,123.6,123.56,8.0951]
[1741714846990,267.12,123.6,123.55,37.24]
[1741714847282,2.5835,123.64,123.55,92.38601797]
[1741714847482,269.5457,123.66,123.58,55.14601797]
[1741714847688,42.2786359,123.67,123.61,55.14601797]
[1741714847881,42.2786359,123.67,123.62,37.24]
[1741714848082,42.2786359,123.67,123.62,42.2601]
[1741714848283,42.2786359,123.67,123.63,55.14601797]
[1741714848683,42.2786359,123.67,123.64,0.05610048]
[1741714849789,55.14601797,123.68,123.64,0.05610048]
[1741714849983,8.0896,123.65,123.64,0.05610048]
[1741714850377,8.0896,123.65,123.64,4.8e-07]
[1741714850582,37.22,123.66,123.59,37.24]
[1741714851085,2.4765,123.65,123.59,37.24]
[1741714851383,5.0908,123.65,123.59,37.24]
[1741714851580,0.06082452,123.63,123.61,8.14744144]
[1741714851788,192.0,123.7,123.61,0.05534144]
[1741714852090,5.0908,123.71,123.6,57.84351797]
[1741714852287,5.0908,123.71,123.61,8.0917]
[1741714852483,55.14601797,123.7,123.6,57.84351797]
[1741714852688,55.14601797,123.7,123.6,2.6975]
[1741714852983,55.14601797,123.68,123.64,5.085e-05]
[1741714853286,8.0896,123.65,123.64,5.085e-05]
[1741714853689,15.568,123.65,123.64,5.085e-05]
[1741714853989,55.14601797,123.62,123.53,45.317]
[1741714854187,267.02,123.61,123.52,2.6382]
[1741714854490,8.0938,123.59,123.53,8.0973]
[1741714854691,247.14601797,123.6,123.52,37.22]
[1741714854892,8.15403277,123.57,123.54,0.05345398]
[1741714855191,0.05903277,123.57,123.54,0.05345398]
[1741714857889,0.05903277,123.57,123.54,8.14975398]
[1741714858298,0.05903277,123.57,123.54,0.05345398]
[1741714858995,0.05903277,123.57,123.56,8.0955]
[1741714859395,0.05903277,123.57,123.56,45.3155]
[1741714860696,192.0,123.64,123.59,8.0932]
[1741714860897,2.4571,123.65,123.56,92.36601797]
[1741714861092,2.4571,123.65,123.58,55.14601797]
[1741714861395,2.4571,123.65,123.58,8.0937]
[1741714861599,8.0925,123.61,123.56,37.22]
[1741714861793,2.4571,123.65,123.6,0.05296472]
[1741714862091,2.4571,123.65,123.61,0.06078481]
[1741714862296,272.0951,123.67,123.61,0.06078481]
[1741714862699,267.04,123.67,123.61,0.06078481]
[1741714862994,44.7977359,123.69,123.62,55.14601797]
[1741714863200,42.2786359,123.69,123.66,55.14601797]
[1741714863499,42.2786359,123.69,123.67,37.22]
[1741714863702,8.0887,123.67,123.65,37.22]
[1741714863899,55.14601797,123.72,123.64,37.22]
[1741714864094,55.14601797,123.72,123.65,0.06034007]
[1741714864501,55.14601797,123.72,123.65,8.14944007]
[1741714864794,269.5591,123.73,123.65,0.06034007]
[1741714864996,269.5591,123.73,123.65,8.0895]
[1741714865201,269.5591,123.73,123.68,0.06005509]
[1741714865796,247.14601797,123.72,123.64,37.22]
[1741714865998,8.0883,123.67,123.64,37.22]
[1741714866297,247.14601797,123.72,123.64,37.22]
[1741714866496,8.0865,123.7,123.64,37.22]
[1741714866896,269.5591,123.73,123.66,8.0884]
[1741714867098,0.05803889,123.68,123.66,0.05945419]
[1741714867397,0.05581797,123.68,123.66,0.05945419]
[1741714868198,267.04,123.73,123.67,55.14601797]
[1741714868391,267.04,123.73,123.68,37.2]
[1741714868594,5.061,123.75,123.72,8.085]
[1741714868802,346.4386359,123.79,123.72,37.2]
[1741714869100,8.0822,123.77,123.73,8.0841]
[1741714869296,309.2386359,123.79,123.72,37.2]
[1741714869496,309.2386359,123.79,123.74,0.05318079]
[1741714870293,8.083,123.75,123.74,0.05318079]
[1741714870495,346.4386359,123.79,123.74,0.05318079]
[1741714870700,2.4693,123.78,123.74,0.05318079]
[1741714870897,55.03043008,123.77,123.68,42.3819]
[1741714871100,55.03043008,123.75,123.68,37.2]
[1741714871295,55.03043008,123.73,123.63,2.5177]
[1741714871502,55.03043008,123.71,123.62,42.3392]
[1741714871701,321.89043008,123.71,123.62,42.3392]
[1741714871901,8.088,123.68,123.62,42.3392]
[1741714872102,8.14459636,123.68,123.65,0.0581307]
[1741714872302,0.05659636,123.68,123.65,0.0581307]
[1741714873202,0.05659636,123.68,123.66,37.18]
[1741714873800,0.05659636,123.68,123.65,0.0581307]
[1741714875611,266.86,123.77,123.66,37.18]
[1741714875908,8.0867,123.7,123.66,45.2685]
[1741714876109,55.03043008,123.75,123.66,37.18]
[1741714876609,37.18,123.74,123.69,9.47e-05]
[1741714876803,55.03043008,123.72,123.69,9.47e-05]
[1741714877003,8.0863,123.7,123.69,9.47e-05]
[1741714877808,10.6020913,123.71,123.69,9.47e-05]
[1741714878113,0.0537913,123.71,123.69,9.47e-05]
[1741714878809,266.86,123.77,123.7,55.03043008]
[1741714879008,351.39727182,123.84,123.72,55.03043008]
[1741714879208,74.93674179,123.83,123.74,55.03043008]
[1741714879410,74.93674179,123.83,123.76,55.03043008]
[1741714879602,74.93674179,123.83,123.77,37.18]
[1741714880002,83.01494179,123.83,123.79,0.05399689]
[1741714880200,69.92434179,123.83,123.79,0.05399689]
[1741714880405,67.25664179,123.83,123.79,0.05399689]
[1741714880606,67.25664179,123.83,123.81,55.03043008]
[1741714880807,77.77974907,123.84,123.82,37.18]
[1741714881106,10.78051743,123.91,123.82,37.18]
[1741714881304,37.18,123.9,123.82,0.05733278]
[1741714881499,37.18,123.9,123.79,2.4712]
[1741714881500,8.0752,123.87,123.8,37.18]
[1741714881711,37.18,123.9,123.85,0.05147159]
[1741714881907,192.0,123.89,123.8,37.18]
[1741714882206,10.78051743,123.91,123.8,37.18]
[1741714882410,10.78051743,123.91,123.83,55.09179114]
[1741714882612,10.78051743,123.91,123.84,37.18]
[1741714882805,65.81094751,123.91,123.86,0.05721401]
[1741714883210,8.0734,123.9,123.86,0.05721401]
[1741714883409,10.78051743,123.91,123.86,0.05721401]
[1741714884209,8.0744,123.89,123.86,0.05721401]
[1741714884409,10.78051743,123.91,123.86,0.05721401]
[1741714884612,16.00311743,123.91,123.86,0.05721401]
[1741714885406,8.0739,123.89,123.86,0.05721401]
[1741714885604,5.2226,123.91,123.86,0.05721401]
[1741714886517,5.2226,123.91,123.87,45.2151]
[1741714886707,2.5966,123.92,123.87,37.14]
[1741714888109,266.82,123.93,123.87,37.14]
[1741714888311,266.82,123.93,123.88,55.03043008]
[1741714888513,37.14,123.98,123.88,55.03043008]
[1741714888709,37.14,123.98,123.89,0.06199715]
[1741714888916,8.0696,123.96,123.91,8.0722]
[1741714889118,37.14,123.98,123.92,0.05164973]
[1741714889313,266.56,123.99,123.92,0.05164973]
[1741714889914,8.0697,123.96,123.92,0.05164973]
[1741714890115,266.56,123.99,123.92,0.05164973]
[1741714890415,266.56,123.99,123.92,37.19164973]
[1741714890818,55.03043008,123.96,123.85,39.8292]
[1741714891115,39.5732,123.95,123.86,8.0757]
[1741714891315,39.5732,123.95,123.85,37.14]
[1741714891515,2.4629,123.94,123.85,37.14]
[1741714891721,57.49333008,123.94,123.85,37.14]
[1741714891916,57.49333008,123.94,123.85,37.12]
[1741714892115,8.0739,123.89,123.88,0.06148734]
[1741714892314,321.54577351,123.91,123.85,37.12]
[1741714892615,2.4332,123.88,123.8,39.6428]
[1741714893417,2.4332,123.88,123.8,47.7221]
[1741714893618,0.05162106,123.85,123.83,0.05256431]
[1741714893925,8.12862106,123.85,123.83,0.05256431]
[1741714894125,0.05162106,123.85,123.83,0.05256431]
[1741714894310,0.05162106,123.85,123.83,37.17256431]
[1741714895118,0.05162106,123.85,123.84,8.0771]
[1741714896419,0.05162106,123.85,123.83,37.17256431]
[1741714898116,0.05162106,123.85,123.84,8.0771]
[1741714898317,0.05162106,123.85,123.83,39.60376431]
[1741714898520,0.05162106,123.85,123.83,45.24986431]
[1741714898721,0.05162106,123.85,123.83,37.17256431]
[1741714899124,0.05162106,123.85,123.84,8.0771]
[1741714900914,0.05162106,123.85,123.83,37.17256431]
[1741714902322,0.05162106,123.85,123.83,45.24996431]
[1741714903218,0.05162106,123.85,123.83,37.17256431]
[1741714904422,0.05162106,123.85,123.83,45.25006431]
[1741714904620,0.05162106,123.85,123.83,37.17256431]
[1741714905417,0.05162106,123.85,123.84,8.0771]
[1741714906026,458.46,123.91,123.83,37.17256431]
[1741714906328,266.46,123.91,123.85,55.03043008]
[1741714906525,266.46,123.91,123.88,8.0741]
[1741714906725,266.46,123.91,123.88,45.1941]
[1741714907026,266.46,123.91,123.88,37.12]
[1741714907218,266.51941011,123.91,123.88,37.17830766]
[1741714907819,266.51941011,123.91,123.89,8.0733]
[1741714908019,266.51941011,123.91,123.88,37.17830766]
[1741714908525,266.51941011,123.91,123.89,8.0735]
[1741714908725,0.05941011,123.91,123.88,37.17830766]
[1741714908920,271.7884,123.99,123.9,55.03043008]
[1741714909123,8.0691,123.97,123.9,55.03043008]
[1741714909427,271.7884,123.99,123.9,55.03043008]
[1741714909622,271.7884,123.99,123.88,37.12]
[1741714909827,37.12,123.98,123.88,37.12]
[1741714910224,8.0713,123.93,123.92,0.05382777]
[1741714910425,247.03043008,123.97,123.92,0.05382777]
[1741714910627,192.0,123.97,123.92,0.05382777]
[1741714911424,271.7884,123.99,123.92,37.17382777]
[1741714911628,271.7884,123.99,123.94,8.0705]
[1741714911823,279.8561,123.99,123.94,8.0705]
[1741714912023,271.7884,123.99,123.92,37.12]
[1741714912329,5.3284,123.99,123.95,0.05717414]
[1741714914326,5.3284,123.99,123.95,8.12707414]
[1741714914630,5.3284,123.99,123.96,37.1]
[1741714914833,266.42,124.03,123.96,92.13043008]
[1741714915330,8.0639,124.05,124.0,8.0663]
[1741714915627,5.0807,124.07,124.01,0.05162844]
[1741714915826,8.0666,124.01,123.96,37.1]
[1741714916027,55.03043008,124.05,123.96,37.1]
[1741714916228,37.1,124.04,123.96,37.1]
[1741714917027,0.05742804,124.01,123.99,0.05459703]
[1741714917227,8.12352804,124.01,123.99,0.05459703]
[1741714917628,0.05742804,124.01,123.99,0.05459703]
[1741714917829,0.05742804,124.01,123.96,37.1]
[1741714918234,8.0671,124.0,123.96,37.1]
[1741714918530,0.05742804,124.01,123.96,37.1]
[1741714918732,2.6067,124.0,123.93,37.1]
[1741714919131,0.0528261,123.98,123.95,0.05950551]
[1741714920935,8.0693,123.96,123.95,0.05950551]
[1741714921138,0.0528261,123.98,123.88,37.1]
[1741714921325,229.1,123.99,123.88,37.1]
[1741714921725,284.13043008,123.99,123.88,37.1]
[1741714921929,8.071,123.94,123.9,8.0728]
[1741714922126,55.03043008,123.96,123.88,37.1]
[1741714922333,2.614471,123.93,123.91,0.05209187]
[1741714922527,268.8169,123.93,123.83,41.38133316]
[1741714922728,33.78563316,123.91,123.82,33.17341448]
[1741714922933,8.0755,123.87,123.83,8.0776]
[1741714923231,33.78563316,123.89,123.78,122.32224277]
[1741714923540,192.0,123.88,123.78,159.42224277]
[1741714923833,0.05474832,123.85,123.82,0.05959917]
[1741714924033,266.31474832,123.85,123.82,0.05959917]
[1741714924236,8.0771,123.84,123.82,0.05959917]
[1741714924436,2.4501,123.84,123.82,0.05959917]
[1741714925738,266.31474832,123.85,123.82,0.05959917]
[1741714926528,8.0776,123.84,123.82,0.05959917]
[1741714926728,266.31474832,123.85,123.82,0.05959917]
[1741714927138,274.39144832,123.85,123.82,0.05959917]
[1741714927336,266.31474832,123.85,123.82,0.05959917]
[1741714927740,266.31474832,123.85,123.82,8.13749917]
[1741714928036,266.31474832,123.85,123.82,0.05959917]
[1741714929037,274.39164832,123.85,123.82,0.05959917]
[1741714929237,266.31474832,123.85,123.82,0.05959917]
[1741714929437,8.0778,123.83,123.82,0.05959917]
[1741714930038,303.41474832,123.85,123.77,37.1]
[1741714930236,303.36,123.85,123.77,37.1]
[1741714930539,311.4366,123.85,123.77,37.1]
[1741714930739,311.4366,123.85,123.78,54.97280743]
[1741714930942,274.3366,123.85,123.78,54.97280743]
[1741714931142,0.05904328,123.83,123.8,0.05329348]
[1741714931639,0.05904328,123.83,123.81,37.12]
[1741714932149,0.05904328,123.83,123.82,8.0785]
[1741714932341,0.05904328,123.83,123.82,63.05130743]
[1741714932641,266.44,123.91,123.82,60.08060743]
[1741714932844,266.44,123.91,123.85,8.076]
[1741714933043,266.44,123.91,123.82,57.66060743]
[1741714933438,266.44,123.91,123.84,54.97280743]
[1741714933637,0.0536222,123.88,123.85,37.17983954]
[1741714934134,0.0536222,123.88,123.86,8.0755]
[1741714934345,0.0536222,123.88,123.85,37.17983954]
[1741714934544,8.1287222,123.88,123.85,45.25623954]
[1741714934942,8.0757,123.87,123.85,0.05983954]
[1741714935246,0.0536222,123.88,123.85,0.05983954]
[1741714935247,0.0536222,123.88,123.86,37.12]
[1741714935643,0.0536222,123.88,123.87,8.0752]
[1741714936349,4.9993,123.96,123.87,57.39280743]
[1741714936648,266.44,123.97,123.9,54.97280743]
[1741714936849,4.9993,124.0,123.91,37.1]
[1741714937045,4.9993,124.0,123.93,54.97280743]
[1741714937543,0.06154437,123.98,123.95,0.05435171]
[1741714937743,0.06154437,123.98,123.96,37.1]
[1741714937950,0.06154437,123.98,123.97,8.0687]
[1741714938145,0.06154437,123.98,123.96,37.1]
[1741714938448,0.06154437,123.98,123.96,45.169]
[1741714939048,0.06154437,123.98,123.97,8.0687]
[1741714939255,0.06154437,123.98,123.96,37.1]
[1741714940555,0.06154437,123.98,123.97,8.0687]
[1741714942053,266.42,124.03,124.01,8.0658]
[1741714942253,266.42,124.03,123.99,37.1]
[1741714942556,266.42,124.03,123.99,92.07280743]
[1741714942755,13.1786,124.06,124.02,8.0649]
[1741714942948,8.0594,124.12,124.03,92.05280743]
[1741714943153,0.05779407,124.05,124.04,37.08]
[1741714943356,7.5206,124.12,124.03,54.97280743]
[1741714943559,7.5206,124.12,124.03,55.0320008]
[1741714943560,0.05645743,124.06,124.03,55.0320008]
[1741714943857,125.33457864,124.13,124.03,54.97280743]
[1741714944048,117.90787864,124.13,124.06,54.97280743]
[1741714944256,117.90787864,124.13,124.07,37.08]
[1741714944855,0.05255434,124.11,124.09,0.0571096]
[1741714945555,0.05255434,124.11,124.04,37.08]
[1741714945954,54.97280743,124.1,124.01,39.6733]
[1741714946156,5.0121,124.09,124.01,37.08]
[1741714946360,8.0626,124.07,124.01,37.08]
[1741714946554,8.0626,124.07,124.01,45.1456]
[1741714946860,0.05890035,124.05,124.03,0.06056518]
[1741714949455,8.0641,124.04,123.96,37.2]
[1741714950160,37.2,124.06,123.96,37.2]
[1741714950562,0.05509682,124.02,124.0,0.05291032]
[1741714951460,0.05509682,124.02,124.0,37.29291032]
[1741714951763,0.05509682,124.02,124.0,45.35931032]
[1741714951959,0.05509682,124.02,124.0,37.29291032]
[1741714952160,8.0661,124.01,124.0,37.29291032]
[1741714952359,8.0661,124.01,124.0,0.05291032]
[1741714952664,0.05509682,124.02,123.94,2.6799]
[1741714952863,54.97280743,124.04,123.95,37.16]
[1741714953457,54.97280743,124.04,123.95,45.23]
[1741714953762,0.05202486,124.01,123.98,0.05544041]
[1741714954165,8.0667,124.0,123.98,0.05544041]
[1741714954459,0.05202486,124.01,123.98,0.05544041]
[1741714954657,8.0671,124.0,123.98,0.05544041]
[1741714956063,0.05202486,124.01,123.98,0.05544041]
[1741714957159,8.0674,123.99,123.98,0.05544041]
[1741714960866,8.0688,123.97,123.94,37.08]
[1741714961068,266.16,124.01,123.94,45.1502]
[1741714961274,266.16,124.01,123.94,37.08]
[1741714961769,266.16,124.01,123.94,42.1701]
[1741714961966,0.05306923,123.99,123.96,0.05753399]
[1741714962469,8.12076923,123.99,123.96,0.05753399]
[1741714962669,0.05306923,123.99,123.96,0.05753399]
[1741714963666,0.05306923,123.99,123.96,8.12653399]
[1741714963871,0.05306923,123.99,123.96,0.05753399]
[1741714965976,8.12076923,123.99,123.96,0.05753399]
[1741714966366,0.05306923,123.99,123.96,0.05753399]
[1741714967774,8.12096923,123.99,123.96,0.05753399]
[1741714968276,0.05306923,123.99,123.96,0.05753399]
[1741714968467,8.0681,123.98,123.96,0.05753399]
[1741714969879,0.05306923,123.99,123.96,0.05753399]
[1741714970073,8.0687,123.97,123.96,0.05753399]
[1741714970380,0.05306923,123.99,123.96,0.05753399]
[1741714971572,8.0684,123.98,123.96,0.05753399]
[1741714972280,0.05306923,123.99,123.96,0.05753399]
[1741714972481,8.0687,123.97,123.96,0.05753399]
[1741714972976,0.05306923,123.99,123.88,33.72999576]
[1741714973279,2.4799,123.96,123.89,37.08]
[1741714973982,2.4799,123.96,123.9,37.08]
[1741714974171,8.0714,123.93,123.9,37.08]
[1741714974377,0.06034664,123.94,123.91,0.05494199]
[1741714974882,0.06034664,123.94,123.92,8.0716]
[1741714975178,0.06034664,123.94,123.91,0.05494199]
[1741714976180,8.13124664,123.94,123.91,0.05494199]
[1741714976579,0.06034664,123.94,123.91,0.05494199]
[1741714976978,8.0719,123.92,123.91,0.05494199]
[1741714977178,0.06034664,123.94,123.85,4.9127]
[1741714977179,0.06034664,123.94,123.86,37.08]
[1741714977378,229.08,123.96,123.86,37.08]
[1741714977681,8.0713,123.93,123.89,8.0738]
[1741714977980,229.08,123.96,123.89,8.0738]
[1741714978181,2.5727,123.95,123.89,8.0738]
[1741714978380,0.06116429,123.94,123.91,0.05790247]
[1741714978883,8.0721,123.92,123.91,0.05790247]
[1741714980084,2.44436429,123.94,123.86,45.1556]
[1741714980385,8.0736,123.9,123.86,37.08]
[1741714980682,266.28,123.93,123.86,37.08]
[1741714981075,266.28,123.93,123.88,8.0742]
[1741714981280,8.13254773,123.91,123.88,0.05862981]
[1741714981677,0.05954773,123.91,123.88,0.05862981]
[1741714981876,8.0739,123.89,123.88,0.05862981]
[1741714982490,8.0768,123.85,123.82,4.9325]
[1741714982783,231.6393,123.92,123.82,42.0125]
[1741714983086,33.72999576,123.91,123.82,42.0125]
[1741714983289,33.72999576,123.91,123.83,8.0776]
[1741714983783,0.06011316,123.88,123.86,0.05854543]
[1741714984187,8.0752,123.87,123.86,0.05854543]
[1741714988979,8.0752,123.87,123.86,4.543e-05]
[1741714991486,10.4952,123.87,123.86,4.543e-05]